bitfinex-derivatives/quotes_BTCF0:USTF0_20240923
["timestamp","ask_amount","ask_price","bid_price","bid_amount"]
[1727084173291,0.181519,63682.0,63681.0,0.002]
[1727084178901,0.22972383,63682.0,63681.0,0.002]
[1727084180303,0.15120483,63682.0,63672.0,0.0037]
[1727084180500,0.15120483,63682.0,63668.0,0.0037]
[1727084180501,0.4408,63675.0,63668.0,0.0037]
[1727084180695,0.04820483,63674.0,63666.0,0.44284]
[1727084181202,0.04820483,63674.0,63672.0,0.078531]
[1727084181702,0.07853,63673.0,63666.0,0.44284]
[1727084181903,0.04820483,63672.0,63669.0,0.078534]
[1727084182104,0.04820788,63672.0,63670.0,0.078533]
[1727084182401,0.04820788,63672.0,63671.0,0.08088783]
[1727084183205,0.04820662,63672.0,63671.0,0.08088783]
[1727084186001,0.078529,63674.0,63673.0,0.07853]
[1727084186201,0.078524,63678.0,63677.0,0.078525]
[1727084186405,0.078524,63678.0,63677.0,0.12527839]
[1727084186710,0.078524,63678.0,63677.0,0.078525]
[1727084189012,0.078524,63678.0,63677.0,0.12531164]
[1727084189210,0.078524,63678.0,63677.0,0.078525]
[1727084190212,0.078524,63678.0,63677.0,0.079525]
[1727084190416,0.01,63678.0,63677.0,0.079525]
[1727084190610,0.02,63678.0,63677.0,0.14284849]
[1727084190812,0.01,63678.0,63677.0,0.14184849]
[1727084191115,0.022,63678.0,63677.0,0.080525]
[1727084191610,0.022,63678.0,63677.0,0.079525]
[1727084191816,0.021,63678.0,63677.0,0.080525]
[1727084192616,0.021,63678.0,63677.0,0.14284849]
[1727084192823,0.021,63678.0,63677.0,0.080525]
[1727084193009,0.021,63678.0,63677.0,0.14284849]
[1727084193203,0.021,63678.0,63677.0,0.080525]
[1727084193815,0.012,63678.0,63677.0,0.079525]
[1727084194119,0.07020734,63678.0,63677.0,0.080525]
[1727084195718,0.43100734,63678.0,63677.0,0.080525]
[1727084196622,0.43100792,63678.0,63677.0,0.080525]
[1727084196921,0.43100792,63678.0,63677.0,0.002]
[1727084197121,0.48733782,63678.0,63677.0,0.002]
[1727084199912,0.56586082,63678.0,63677.0,0.002]
[1727084201219,0.56586082,63678.0,63671.0,0.08088683]
[1727084201220,0.078531,63672.0,63671.0,0.00235583]
[1727084201423,0.519331,63672.0,63671.0,0.00235583]
[1727084203324,0.523331,63672.0,63671.0,0.00235583]
[1727084203525,0.529331,63672.0,63671.0,0.00335583]
[1727084210835,0.449331,63672.0,63671.0,0.00335583]
[1727084213826,0.3708,63672.0,63671.0,0.08188783]
[1727084214033,0.01,63672.0,63671.0,0.16188783]
[1727084214220,0.078525,63677.0,63672.0,0.07853]
[1727084214428,0.078525,63677.0,63676.0,0.06240833]
[1727084216340,0.13073484,63677.0,63673.0,0.078529]
[1727084216536,0.04820984,63676.0,63673.0,0.078529]
[1727084217237,0.04820984,63676.0,63674.0,0.078528]
[1727084218034,0.05520984,63676.0,63674.0,0.078528]
[1727084218226,0.04820984,63675.0,63674.0,0.078528]
[1727084219826,0.05420984,63675.0,63674.0,0.080528]
[1727084220025,0.13420984,63675.0,63674.0,0.080528]
[1727084220231,0.21273684,63675.0,63674.0,0.002]
[1727084220529,0.22173684,63675.0,63674.0,0.002]
[1727084223136,0.27806966,63675.0,63674.0,0.002]
[1727084223940,0.3608,63700.0,63675.0,0.47116]
[1727084224137,0.3608,63700.0,63674.0,1.0978]
[1727084224138,0.3608,63700.0,63699.0,0.158498]
[1727084224337,0.0452,63708.0,63704.0,0.078491]
[1727084224732,0.0452,63708.0,63699.0,0.3608]
[1727084224733,0.0452,63708.0,63705.0,0.15849]
[1727084224929,0.0452,63708.0,63701.0,0.078495]
[1727084225138,0.0452,63708.0,63701.0,0.158495]
[1727084225431,0.08,63707.0,63701.0,0.158495]
[1727084226141,0.08,63707.0,63701.0,0.078495]
[1727084226339,0.0512,63708.0,63704.0,0.001]
[1727084226835,0.001,63707.0,63704.0,0.001]
[1727084227028,0.007,63707.0,63701.0,0.002]
[1727084227337,0.007,63707.0,63706.0,0.078489]
[1727084227741,0.001,63707.0,63706.0,0.078489]
[1727084229439,0.002,63707.0,63706.0,0.078489]
[1727084229936,0.006,63707.0,63706.0,0.079489]
[1727084230539,0.13,63714.0,63709.0,0.078485]
[1727084231243,0.13,63714.0,63710.0,0.078484]
[1727084231943,0.13,63714.0,63704.0,0.13]
[1727084232644,0.13,63714.0,63711.0,0.078482]
[1727084233745,0.13,63714.0,63711.0,0.079482]
[1727084233937,0.136,63714.0,63711.0,0.079482]
[1727084234543,0.136,63714.0,63713.0,0.07848]
[1727084234544,0.006,63714.0,63713.0,0.07848]
[1727084236243,0.006,63714.0,63713.0,0.57028]
[1727084236457,0.078467,63724.0,63717.0,0.078474]
[1727084236640,0.078467,63724.0,63718.0,0.078474]
[1727084237040,0.078467,63724.0,63719.0,0.078473]
[1727084237347,0.49315458,63725.0,63719.0,0.078473]
[1727084237348,0.13,63721.0,63719.0,0.078473]
[1727084237549,0.006,63723.0,63722.0,0.078469]
[1727084237751,0.006,63723.0,63722.0,0.208469]
[1727084239349,0.10445301,63723.0,63720.0,0.3608]
[1727084239649,0.006,63723.0,63722.0,0.208469]
[1727084239846,0.1104531,63723.0,63722.0,0.208469]
[1727084240048,0.1104531,63723.0,63722.0,0.209469]
[1727084240253,0.1104531,63723.0,63722.0,0.210469]
[1727084240443,0.1104531,63723.0,63722.0,0.080469]
[1727084240750,0.1104531,63723.0,63722.0,0.079469]
[1727084242247,0.1094531,63723.0,63722.0,0.080469]
[1727084242760,0.05316854,63723.0,63722.0,0.080469]
[1727084242962,0.1094531,63723.0,63722.0,0.080469]
[1727084243145,0.05316854,63723.0,63722.0,0.080469]
[1727084246258,0.005,63723.0,63722.0,0.080469]
[1727084250662,0.15694,63721.0,63709.0,0.078484]
[1727084250854,1.284268,63723.0,63709.0,0.0037]
[1727084250855,0.078484,63710.0,63709.0,0.0037]
[1727084251059,0.078487,63708.0,63707.0,0.3608]
[1727084251769,0.078481,63713.0,63709.0,0.078485]
[1727084252464,0.078482,63712.0,63709.0,0.078485]
[1727084252855,0.078482,63712.0,63709.0,0.079485]
[1727084253155,0.078483,63711.0,63709.0,0.004]
[1727084253762,0.127184,63710.0,63709.0,0.001]
[1727084253967,0.0981,63710.0,63709.0,0.002]
[1727084254471,0.20258083,63710.0,63709.0,0.002]
[1727084254669,0.21543533,63710.0,63709.0,0.002]
[1727084254860,0.27173483,63710.0,63709.0,0.002]
[1727084256165,0.27773483,63710.0,63709.0,0.002]
[1727084256363,0.5903535,63710.0,63709.0,0.002]
[1727084257365,0.5913535,63710.0,63709.0,0.002]
[1727084258365,0.63953841,63710.0,63709.0,0.002]
[1727084260474,0.63953841,63710.0,63709.0,0.210485]
[1727084260475,0.56105441,63710.0,63709.0,0.210485]
[1727084261071,0.52168441,63710.0,63709.0,0.210485]
[1727084261271,0.007,63710.0,63709.0,0.210485]
[1727084261478,0.007,63710.0,63709.0,1.313765]
[1727084262188,0.007,63710.0,63709.0,1.151365]
[1727084262371,0.007,63710.0,63709.0,0.681365]
[1727084262770,0.007,63710.0,63709.0,1.281365]
[1727084263175,0.078478,63716.0,63713.0,0.078479]
[1727084263566,0.078478,63716.0,63714.0,0.078479]
[1727084265177,0.083478,63716.0,63714.0,0.078479]
[1727084265687,0.005,63716.0,63715.0,0.078478]
[1727084266870,0.005,63716.0,63715.0,0.079478]
[1727084268280,0.001,63716.0,63715.0,0.079478]
[1727084268476,0.084477,63716.0,63715.0,0.080478]
[1727084268680,0.3668,63716.0,63715.0,0.080478]
[1727084268980,0.006,63716.0,63715.0,0.080478]
[1727084269282,0.17488506,63716.0,63715.0,0.07023289]
[1727084270375,0.11047251,63716.0,63715.0,0.07023289]
[1727084271974,0.54974951,63716.0,63715.0,0.002]
[1727084273380,0.47127251,63716.0,63715.0,0.002]
[1727084275879,0.47127251,63716.0,63715.0,0.080478]
[1727084276389,0.3668,63716.0,63715.0,0.080478]
[1727084278181,0.3668,63716.0,63715.0,0.002]
[1727084279880,0.006,63716.0,63715.0,0.002]
[1727084280374,0.084477,63716.0,63715.0,0.002]
[1727084283385,0.084477,63716.0,63715.0,0.080478]
[1727084283690,0.006,63716.0,63715.0,0.080478]
[1727084284787,0.05417686,63716.0,63715.0,0.080478]
[1727084284989,0.13265386,63716.0,63715.0,0.080478]
[1727084286092,0.13265386,63716.0,63715.0,0.002]
[1727084287192,0.05417686,63716.0,63715.0,0.080478]
[1727084289491,0.05417686,63716.0,63715.0,0.002]
[1727084291514,0.006,63716.0,63715.0,0.04880827]
[1727084291891,0.445277,63716.0,63715.0,0.002]
[1727084294093,0.445277,63716.0,63708.0,0.0037]
[1727084294094,0.3668,63716.0,63708.0,0.0037]
[1727084294289,0.3608,63709.0,63705.0,0.04680827]
[1727084294492,0.3608,63709.0,63704.0,0.082191]
[1727084294493,0.0928,63708.0,63704.0,0.04680827]
[1727084294689,0.0928,63708.0,63705.0,0.04680827]
[1727084295290,0.0928,63708.0,63706.0,0.078488]
[1727084295596,0.0928,63708.0,63703.0,0.04680827]
[1727084295998,0.171287,63708.0,63703.0,0.04680827]
[1727084296297,0.171287,63708.0,63702.0,0.078494]
[1727084296298,0.078488,63707.0,63702.0,0.078494]
[1727084296599,0.13,63705.0,63702.0,0.078494]
[1727084297099,0.0928,63708.0,63701.0,0.00235456]
[1727084297100,0.2228,63708.0,63701.0,0.00235456]
[1727084297296,0.0469,63707.0,63701.0,0.04916283]
[1727084297781,0.002,63705.0,63704.0,0.078491]
[1727084297984,0.002,63705.0,63704.0,0.569291]
[1727084298593,0.0928,63708.0,63707.0,0.078488]
[1727084299595,0.0455,63708.0,63707.0,0.078488]
[1727084300484,0.0037,63715.0,63714.0,0.078479]
[1727084300688,0.17287,63722.0,63718.0,0.078473]
[1727084300989,0.16917,63722.0,63719.0,0.04671005]
[1727084301389,0.078471,63721.0,63719.0,0.04671005]
[1727084301594,0.078471,63721.0,63715.0,0.06228183]
[1727084301595,0.208472,63720.0,63718.0,0.04671005]
[1727084301792,0.208472,63720.0,63718.0,0.04771005]
[1727084302000,0.208472,63720.0,63718.0,0.04871005]
[1727084302293,0.078472,63720.0,63718.0,0.04871005]
[1727084302595,0.13,63719.0,63718.0,0.04771005]
[1727084302801,0.179,63719.0,63718.0,0.04771005]
[1727084303396,0.179,63719.0,63718.0,0.04671005]
[1727084303697,0.049,63719.0,63718.0,0.04671005]
[1727084304297,0.051,63719.0,63718.0,0.12718405]
[1727084305003,0.055,63719.0,63718.0,0.12618405]
[1727084305193,0.057,63719.0,63718.0,0.12718405]
[1727084305799,0.057,63719.0,63718.0,0.080474]
[1727084306495,0.16146876,63719.0,63718.0,0.080474]
[1727084307499,0.11246876,63719.0,63718.0,0.080474]
[1727084310793,0.11246876,63719.0,63718.0,0.002]
[1727084311902,0.19094176,63719.0,63718.0,0.002]
[1727084312317,1.18330876,63719.0,63711.0,0.0037]
[1727084312505,0.569283,63712.0,63707.0,0.0037]
[1727084312809,0.569283,63712.0,63706.0,0.078489]
[1727084312810,0.13,63708.0,63706.0,0.078489]
[1727084313005,0.15156876,63707.0,63706.0,0.078489]
[1727084313195,0.103393,63707.0,63706.0,0.078489]
[1727084313402,0.15157781,63707.0,63706.0,0.078489]
[1727084313712,0.0471,63707.0,63706.0,0.078489]
[1727084314411,0.1791,63707.0,63706.0,0.078489]
[1727084315208,0.1791,63707.0,63699.0,0.0037]
[1727084315412,0.1791,63707.0,63701.0,0.08084856]
[1727084315413,0.13,63703.0,63701.0,0.08084856]
[1727084315908,0.13,63703.0,63702.0,0.078494]
[1727084317907,0.13,63703.0,63702.0,0.079494]
[1727084318109,0.13,63703.0,63702.0,0.001]
[1727084318507,0.208493,63703.0,63702.0,0.001]
[1727084318708,0.209493,63703.0,63702.0,0.001]
[1727084319615,0.211493,63703.0,63697.0,0.078499]
[1727084319915,0.13,63698.0,63697.0,0.078499]
[1727084320607,0.13,63698.0,63693.0,0.078505]
[1727084320802,0.13,63698.0,63690.0,0.6913]
[1727084320803,0.13,63698.0,63694.0,0.078503]
[1727084321008,0.13,63698.0,63697.0,0.003]
[1727084321311,0.13,63698.0,63697.0,0.004]
[1727084321612,0.13,63698.0,63697.0,0.04969502]
[1727084321800,0.13,63698.0,63697.0,0.003]
[1727084322415,0.13,63698.0,63697.0,0.004]
[1727084323206,0.13,63698.0,63697.0,0.001]
[1727084324220,0.13,63698.0,63697.0,0.004]
[1727084324715,0.177,63698.0,63697.0,0.004]
[1727084324916,0.255499,63698.0,63697.0,0.004]
[1727084325719,0.255499,63698.0,63690.0,0.0037]
[1727084325720,0.078507,63691.0,63690.0,0.0037]
[1727084325911,0.569307,63691.0,63684.0,0.48601102]
[1727084326106,0.13,63685.0,63684.0,0.439316]
[1727084327017,0.12,63685.0,63684.0,0.439316]
[1727084327418,0.112,63685.0,63684.0,0.439316]
[1727084328007,0.112,63685.0,63684.0,0.453316]
[1727084328008,0.113,63685.0,63684.0,0.453316]
[1727084328414,0.113,63685.0,63684.0,0.467316]
[1727084329124,0.113,63685.0,63684.0,0.106516]
[1727084329816,0.001,63685.0,63684.0,0.106516]
[1727084330012,0.131,63685.0,63684.0,0.106516]
[1727084330221,0.001,63685.0,63684.0,0.106516]
[1727084330518,0.001,63685.0,63684.0,0.236516]
[1727084330914,0.001,63685.0,63684.0,0.106516]
[1727084336727,0.001,63685.0,63684.0,0.16879783]
[1727084337724,0.001,63685.0,63684.0,0.16866723]
[1727084338225,0.001,63685.0,63684.0,0.106516]
[1727084340126,0.001,63685.0,63684.0,0.236516]
[1727084340322,0.0037,63692.0,63684.0,1.42725552]
[1727084340517,0.078499,63699.0,63690.0,0.13]
[1727084340518,0.0037,63695.0,63690.0,0.13]
[1727084340719,0.078499,63699.0,63697.0,0.0785]
[1727084342223,0.078499,63699.0,63697.0,0.14067636]
[1727084342925,0.255499,63698.0,63697.0,0.0785]
[1727084343131,0.255499,63698.0,63696.0,0.06217636]
[1727084343132,0.0785,63697.0,63696.0,0.06217636]
[1727084343628,0.12669216,63697.0,63693.0,0.078504]
[1727084343829,0.13,63694.0,63693.0,0.078505]
[1727084344035,0.17819216,63694.0,63693.0,0.078505]
[1727084345535,0.17819216,63694.0,63693.0,0.005]
[1727084346331,0.17919216,63694.0,63693.0,0.011]
[1727084347136,0.17919216,63694.0,63693.0,0.089505]
[1727084350635,0.17919379,63694.0,63693.0,0.089505]
[1727084351625,0.09171893,63694.0,63693.0,0.20915505]
[1727084352522,0.09171893,63694.0,63693.0,0.28706426]
[1727084353131,0.09171893,63694.0,63693.0,0.20915505]
[1727084353132,0.001,63694.0,63693.0,0.20915505]
[1727084355634,0.0037,63701.0,63700.0,0.078496]
[1727084355836,0.00235563,63704.0,63699.0,0.07789962]
[1727084356143,0.00235563,63704.0,63702.0,0.078494]
[1727084356337,0.2246,63703.0,63702.0,0.078494]
[1727084356838,0.0452,63703.0,63702.0,0.078494]
[1727084357033,0.0452,63703.0,63702.0,0.27602658]
[1727084357234,0.00235563,63704.0,63703.0,0.078493]
[1727084358625,0.05054077,63704.0,63703.0,0.078493]
[1727084359033,0.05654077,63704.0,63703.0,0.079493]
[1727084359833,0.06054077,63704.0,63703.0,0.079493]
[1727084363543,0.3608,63721.0,63710.0,0.156968]
[1727084363737,0.3608,63721.0,63720.0,0.078472]
[1727084365641,0.3698,63721.0,63720.0,0.079472]
[1727084366229,0.3698,63721.0,63720.0,0.080472]
[1727084366434,0.3808,63721.0,63720.0,0.080472]
[1727084369945,0.02,63721.0,63720.0,0.080472]
[1727084374036,0.06817043,63721.0,63720.0,0.080472]
[1727084377050,0.42897043,63721.0,63720.0,0.080472]
[1727084378842,0.42897459,63721.0,63720.0,0.080472]
[1727084379040,0.06817459,63721.0,63720.0,0.080472]
[1727084379252,0.42897459,63721.0,63720.0,0.080472]
[1727084379447,0.06817459,63721.0,63720.0,0.080472]
[1727084379844,0.03817459,63721.0,63720.0,0.080472]
[1727084380047,0.1763,63723.0,63720.0,0.002]
[1727084380247,0.3608,63721.0,63720.0,0.080472]
[1727084380452,0.4408,63721.0,63720.0,0.080472]
[1727084380648,0.49708677,63721.0,63720.0,0.080472]
[1727084381452,0.49708677,63721.0,63720.0,0.079472]
[1727084381752,0.49708677,63721.0,63720.0,0.080472]
[1727084381753,0.4408,63721.0,63720.0,0.080472]
[1727084382349,0.4498,63721.0,63720.0,0.080472]
[1727084383651,0.089,63721.0,63720.0,0.080472]
[1727084386051,0.4498,63721.0,63720.0,0.080472]
[1727084392373,0.4498,63721.0,63720.0,0.12705296]
[1727084393156,0.089,63721.0,63720.0,0.12705296]
[1727084393355,0.4498,63721.0,63720.0,0.080472]
[1727084393962,0.089,63721.0,63720.0,0.080472]
[1727084396866,0.13717196,63721.0,63720.0,0.080472]
[1727084397668,0.078475,63718.0,63713.0,0.0037]
[1727084397968,0.078475,63718.0,63707.0,0.19730314]
[1727084397969,0.078475,63718.0,63717.0,0.078474]
[1727084398166,1.07665141,63718.0,63717.0,0.078474]
[1727084398374,1.1329407,63718.0,63717.0,0.078474]
[1727084398871,0.2629407,63718.0,63717.0,0.078474]
[1727084399060,0.20765141,63718.0,63717.0,0.078474]
[1727084399959,0.20865141,63718.0,63717.0,0.078474]
[1727084400266,0.13017641,63718.0,63714.0,0.078479]
[1727084400467,0.08,63715.0,63714.0,0.078479]
[1727084400667,0.12817641,63715.0,63714.0,0.078479]
[1727084400860,0.30115441,63715.0,63714.0,0.078479]
[1727084401061,0.50519193,63715.0,63714.0,0.078479]
[1727084401465,0.50514242,63715.0,63714.0,0.078479]
[1727084401669,0.50814242,63715.0,63714.0,0.079479]
[1727084402666,0.3604437,63715.0,63714.0,0.079479]
[1727084402867,0.30415441,63715.0,63714.0,0.079479]
[1727084403071,0.30415816,63715.0,63714.0,0.079479]
[1727084403269,0.30515816,63715.0,63714.0,0.002]
[1727084403873,0.256978,63715.0,63714.0,0.002]
[1727084406762,0.176978,63715.0,63714.0,0.002]
[1727084406967,0.256978,63715.0,63714.0,0.002]
[1727084408264,0.256978,63715.0,63714.0,0.080479]
[1727084413577,0.256978,63715.0,63714.0,0.002]
[1727084414377,0.255456,63715.0,63714.0,0.002]
[1727084414578,0.078487,63708.0,63707.0,0.0037]
[1727084414780,0.078487,63708.0,63704.0,0.082191]
[1727084414781,0.519287,63708.0,63704.0,0.078491]
[1727084415077,0.08,63705.0,63704.0,0.078491]
[1727084415278,0.15849,63705.0,63701.0,0.078495]
[1727084415481,0.08,63702.0,63701.0,0.078495]
[1727084416281,0.078495,63701.0,63700.0,0.00235479]
[1727084417569,0.124195,63701.0,63700.0,0.00235479]
[1727084418971,0.22870333,63701.0,63700.0,0.00235479]
[1727084419571,0.17238901,63701.0,63700.0,0.00235479]
[1727084419782,0.17438901,63701.0,63700.0,0.00235479]
[1727084420171,0.078502,63696.0,63694.0,0.0037]
[1727084420370,0.078502,63696.0,63693.0,0.19499989]
[1727084420371,0.078504,63694.0,63693.0,0.19499989]
[1727084420667,0.12669801,63694.0,63693.0,0.19499989]
[1727084420868,0.04819401,63694.0,63688.0,0.0037]
[1727084421178,0.08,63689.0,63684.0,0.0037]
[1727084421385,0.09529401,63688.0,63683.0,0.078517]
[1727084421687,0.08,63685.0,63679.0,0.69509534]
[1727084421886,0.08,63681.0,63679.0,0.36315534]
[1727084422076,0.0037,63687.0,63685.0,0.078515]
[1727084422286,0.1781995,63686.0,63685.0,0.078515]
[1727084423378,0.13,63686.0,63685.0,0.078515]
[1727084423585,0.17819955,63686.0,63685.0,0.078515]
[1727084423978,0.17919955,63686.0,63685.0,0.087515]
[1727084424378,0.17919955,63686.0,63685.0,0.095515]
[1727084424997,0.18019955,63686.0,63685.0,0.095515]
[1727084425485,0.132,63686.0,63685.0,0.095515]
[1727084426788,0.1801996,63686.0,63685.0,0.095515]
[1727084427085,0.09271352,63686.0,63685.0,0.095515]
[1727084427289,0.09271352,63686.0,63685.0,0.017]
[1727084427681,0.17122752,63686.0,63685.0,0.017]
[1727084437499,0.17422752,63686.0,63685.0,0.009]
[1727084438088,0.17422752,63686.0,63685.0,0.001]
[1727084438089,0.17722752,63686.0,63685.0,0.001]
[1727084438288,0.17922752,63686.0,63685.0,0.001]
[1727084439190,0.17722752,63686.0,63685.0,0.001]
[1727084439388,0.18622752,63686.0,63685.0,0.002]
[1727084441200,0.095514,63686.0,63685.0,0.002]
[1727084441390,0.147,63686.0,63685.0,0.080515]
[1727084442299,0.097,63686.0,63685.0,0.080515]
[1727084445797,0.097,63686.0,63685.0,0.15814994]
[1727084446004,0.097,63686.0,63685.0,0.2778168]
[1727084446199,0.097,63686.0,63685.0,0.27815749]
[1727084446404,0.097,63686.0,63685.0,0.20018186]
[1727084449030,0.097,63686.0,63685.0,0.080515]
[1727084449031,0.14519901,63686.0,63685.0,0.080515]
[1727084450120,0.097,63686.0,63685.0,0.080515]
[1727084450524,0.14519901,63686.0,63685.0,0.080515]
[1727084454435,0.06519901,63686.0,63685.0,0.080515]
[1727084454851,0.017,63686.0,63685.0,0.080515]
[1727084457131,0.08,63689.0,63688.0,0.078511]
[1727084457325,0.08,63689.0,63688.0,0.19816497]
[1727084457733,0.08,63689.0,63688.0,0.2918331]
[1727084458326,0.098,63689.0,63688.0,0.20016497]
[1727084458531,0.098,63689.0,63688.0,0.1585649]
[1727084458532,0.53731,63689.0,63688.0,0.1585649]
[1727084458735,0.53731,63689.0,63688.0,0.002]
[1727084460033,0.52931,63689.0,63688.0,0.001]
[1727084460234,0.078513,63687.0,63685.0,0.0780539]
[1727084460536,0.204314,63686.0,63685.0,0.0780539]
[1727084460732,0.078515,63685.0,63684.0,0.0780539]
[1727084461040,0.158515,63685.0,63684.0,0.19772492]
[1727084462542,0.158515,63685.0,63684.0,0.27624092]
[1727084462941,0.159515,63685.0,63684.0,0.27624092]
[1727084463143,0.161515,63685.0,63684.0,0.079516]
[1727084463838,0.161515,63685.0,63684.0,0.080516]
[1727084466536,0.161515,63685.0,63684.0,0.002]
[1727084467246,0.522315,63685.0,63684.0,0.002]
[1727084472869,0.522315,63685.0,63684.0,0.080516]
[1727084474151,0.4438,63685.0,63684.0,0.080516]
[1727084474943,0.083,63685.0,63684.0,0.080516]
[1727084475956,0.083,63685.0,63684.0,0.079516]
[1727084476848,0.083,63685.0,63684.0,0.080516]
[1727084477257,0.081,63685.0,63684.0,0.079516]
[1727084477458,0.083,63685.0,63684.0,0.080516]
[1727084478058,0.161515,63685.0,63684.0,0.080516]
[1727084478857,0.083,63685.0,63684.0,0.080516]
[1727084479057,0.083,63685.0,63684.0,0.27824159]
[1727084479260,0.083,63685.0,63684.0,0.1585699]
[1727084479449,0.083,63685.0,63684.0,0.080516]
[1727084481149,0.083,63685.0,63684.0,0.1585699]
[1727084481350,0.083,63685.0,63684.0,0.080516]
[1727084481550,0.161515,63685.0,63684.0,0.1585699]
[1727084481846,0.161515,63685.0,63684.0,0.080516]
[1727084482260,0.161515,63685.0,63684.0,0.1585699]
[1727084482556,0.161515,63685.0,63684.0,0.080516]
[1727084483262,0.1222272,63685.0,63684.0,0.27824056]
[1727084483554,0.1222272,63685.0,63684.0,0.27824165]
[1727084484250,0.1222272,63685.0,63684.0,0.1585699]
[1727084485254,0.1222272,63685.0,63684.0,0.2782413]
[1727084485555,0.1222272,63685.0,63684.0,0.2001874]
[1727084486662,0.161515,63685.0,63684.0,0.2001874]
[1727084487161,0.161515,63685.0,63684.0,0.080516]
[1727084488863,0.161515,63685.0,63684.0,0.002]
[1727084490566,0.078527,63675.0,63674.0,0.0037]
[1727084490762,0.078527,63675.0,63670.0,0.078533]
[1727084490763,0.078532,63672.0,63670.0,0.078533]
[1727084490961,0.08,63671.0,63666.0,0.078538]
[1727084491266,0.08,63667.0,63666.0,0.078538]
[1727084491854,0.08,63667.0,63657.0,0.044]
[1727084492063,0.3608,63670.0,63662.0,0.078543]
[1727084492064,0.078538,63666.0,63662.0,0.078543]
[1727084492763,0.068538,63666.0,63662.0,0.078543]
[1727084493162,0.068538,63666.0,63657.0,0.055]
[1727084493353,0.068538,63666.0,63657.0,0.0513]
[1727084493354,0.08,63658.0,63657.0,0.0513]
[1727084493663,0.08,63658.0,63648.0,0.00514]
[1727084493968,0.3608,63656.0,63654.0,0.078553]
[1727084494171,0.3608,63656.0,63650.0,0.078558]
[1727084494375,0.3608,63656.0,63651.0,0.19828328]
[1727084494567,0.429352,63656.0,63653.0,0.06241488]
[1727084494760,0.429352,63656.0,63655.0,0.04681823]
[1727084495068,0.429352,63656.0,63652.0,0.06241488]
[1727084495069,0.4308,63656.0,63645.0,0.0037]
[1727084495277,0.3608,63650.0,63643.0,0.0023569]
[1727084495461,0.07,63644.0,63643.0,0.0023569]
[1727084495774,0.519365,63644.0,63643.0,0.0023569]
[1727084495970,0.4408,63644.0,63634.0,0.0037]
[1727084496171,0.4408,63644.0,63633.0,0.078579]
[1727084496172,0.08,63635.0,63633.0,0.078579]
[1727084496375,0.08,63635.0,63629.0,0.1339614]
[1727084496376,0.12,63634.0,63629.0,0.118883]
[1727084496556,0.13,63630.0,63629.0,0.118883]
[1727084496753,0.13,63630.0,63629.0,0.078583]
[1727084497866,0.13,63630.0,63621.0,0.0403]
[1727084497867,0.127,63630.0,63621.0,0.0403]
[1727084498060,0.13,63623.0,63622.0,0.078593]
[1727084498255,0.44162,63635.0,63621.0,0.51182]
[1727084498256,0.13,63627.0,63621.0,0.51182]
[1727084498456,0.44242,63635.0,63621.0,0.51182]
[1727084498457,0.13,63630.0,63626.0,0.3608]
[1727084498873,0.131,63630.0,63626.0,0.3608]
[1727084499061,0.132,63630.0,63629.0,0.078584]
[1727084500168,0.002,63630.0,63629.0,0.078584]
[1727084500466,0.439366,63644.0,63641.0,0.078568]
[1727084501263,0.078568,63642.0,63635.0,0.078576]
[1727084501456,0.078568,63642.0,63637.0,0.078574]
[1727084502062,0.13,63638.0,63637.0,0.078574]
[1727084503374,0.131,63638.0,63637.0,0.078574]
[1727084503563,0.132,63638.0,63637.0,0.078574]
[1727084503766,0.002,63638.0,63637.0,0.078574]
[1727084504068,0.002,63638.0,63633.0,0.3608]
[1727084504069,0.13,63645.0,63644.0,0.078565]
[1727084505168,0.13,63645.0,63640.0,0.3608]
[1727084505169,0.0975,63649.0,63648.0,0.07856]
[1727084505472,0.208553,63654.0,63640.0,0.3608]
[1727084506172,0.13,63649.0,63640.0,0.3608]
[1727084506675,0.133,63649.0,63640.0,0.3608]
[1727084507266,0.133,63649.0,63648.0,0.07856]
[1727084507970,0.003,63649.0,63648.0,0.07856]
[1727084508166,0.131,63654.0,63653.0,0.078554]
[1727084508365,0.002,63654.0,63653.0,0.078554]
[1727084508567,0.132,63654.0,63653.0,0.078554]
[1727084508970,0.13,63654.0,63653.0,0.078554]
[1727084509564,0.13,63654.0,63653.0,0.080554]
[1727084510067,0.136,63654.0,63653.0,0.078554]
[1727084510767,0.135,63654.0,63653.0,0.078554]
[1727084511670,0.134,63654.0,63653.0,0.078554]
[1727084511875,0.078557,63651.0,63647.0,0.3608]
[1727084512085,0.13,63648.0,63647.0,0.439362]
[1727084513173,0.132,63648.0,63647.0,0.439362]
[1727084513377,0.132,63648.0,63640.0,0.00235657]
[1727084513378,0.4928,63648.0,63640.0,0.00235657]
[1727084513564,0.13,63641.0,63640.0,0.08092657]
[1727084515285,0.13,63644.0,63640.0,0.00235657]
[1727084515474,0.13,63644.0,63643.0,0.078567]
[1727084516080,0.13,63644.0,63640.0,0.001]
[1727084516380,0.3618,63648.0,63640.0,0.001]
[1727084516381,0.208569,63641.0,63640.0,0.001]
[1727084517982,0.078573,63638.0,63634.0,0.078577]
[1727084518178,0.13,63635.0,63634.0,0.078577]
[1727084518572,0.129,63635.0,63634.0,0.078577]
[1727084519173,0.129,63635.0,63634.0,0.079577]
[1727084519583,0.13,63635.0,63634.0,0.079577]